bitfinex/quotes_BTCUSD_20240728
["timestamp","ask_amount","ask_price","bid_price","bid_amount"]
[1722125098389,0.12265836,67717.0,67713.0,0.00913]
[1722125098591,0.0015542,67734.0,67714.0,0.0815]
[1722125098592,0.12265836,67720.0,67714.0,0.0815]
[1722125098765,0.12272931,67719.0,67714.0,0.0815]
[1722125098962,0.118143,67714.0,67713.0,0.00413]
[1722125099187,0.74097657,67714.0,67713.0,0.00413]
[1722125099580,0.50468957,67714.0,67713.0,0.00413]
[1722125099796,0.74097657,67714.0,67713.0,0.00413]
[1722125099949,0.97726357,67714.0,67713.0,0.00413]
[1722125101729,0.50468957,67714.0,67713.0,0.00413]
[1722125101936,0.15025957,67714.0,67713.0,0.00413]
[1722125102133,0.236245,67727.0,67713.0,0.00413]
[1722125102375,0.15025957,67726.0,67713.0,0.00413]
[1722125102774,0.15025957,67726.0,67714.0,0.22102979]
[1722125103148,0.0833,67742.0,67721.0,0.07512979]
[1722125103149,0.236208,67737.0,67721.0,0.07512979]
[1722125103349,0.236233,67730.0,67714.0,0.1459]
[1722125103670,0.15025957,67729.0,67720.0,0.118133]
[1722125103879,0.15025957,67729.0,67714.0,0.1459]
[1722125103880,0.11812,67728.0,67716.0,0.23628]
[1722125104076,0.15025957,67727.0,67714.0,0.1459]
[1722125104484,0.15025957,67727.0,67720.0,0.118133]
[1722125104697,0.236246,67726.0,67713.0,0.06853]
[1722125104823,0.15025957,67725.0,67713.0,0.06853]
[1722125105027,0.15025957,67725.0,67718.0,0.118136]
[1722125105230,0.57460279,67747.0,67713.0,0.06853]
[1722125105426,0.236212,67736.0,67714.0,0.236287]
[1722125105670,0.15025957,67735.0,67714.0,0.236287]
[1722125105841,0.15025957,67735.0,67713.0,0.06853]
[1722125105842,0.15025957,67735.0,67715.0,0.236283]
[1722125106041,0.118116,67730.0,67715.0,0.236283]
[1722125106256,0.45077872,67742.0,67715.0,0.236283]
[1722125106257,0.15025957,67729.0,67715.0,0.236283]
[1722125106513,0.15025957,67729.0,67713.0,0.06853]
[1722125106514,0.45077872,67741.0,67713.0,0.06853]
[1722125106715,0.15025957,67740.0,67717.0,0.07512979]
[1722125106915,0.236128,67760.0,67717.0,0.07512979]
[1722125106916,0.11809,67745.0,67737.0,0.118103]
[1722125107213,0.15025957,67744.0,67738.0,0.0815]
[1722125107431,0.45077872,67761.0,67739.0,0.2362]
[1722125107638,0.45077872,67761.0,67738.0,0.0815]
[1722125107639,0.118075,67754.0,67738.0,0.0815]
[1722125107837,0.15025957,67753.0,67738.0,0.0815]
[1722125108048,0.15025957,67753.0,67729.0,0.37334166]
[1722125108049,0.07512979,67743.0,67729.0,0.51924166]
[1722125108253,0.118116,67730.0,67729.0,0.0644]
[1722125108450,0.05101317,67755.0,67722.0,0.0644]
[1722125108661,0.23619,67742.0,67722.0,0.0644]
[1722125108867,0.236207,67737.0,67725.0,0.118123]
[1722125109167,0.236207,67737.0,67723.0,0.236255]
[1722125109168,0.118112,67732.0,67723.0,0.236255]
[1722125109376,0.118115,67731.0,67724.0,0.118126]
[1722125109586,0.15025957,67730.0,67726.0,0.118122]
[1722125110017,0.15025957,67730.0,67722.0,0.0644]
[1722125110231,0.118131,67721.0,67720.0,0.0815]
[1722125110431,0.11807854,67721.0,67720.0,0.0815]
[1722125110665,0.11807854,67721.0,67715.0,0.49689141]
[1722125110666,0.35442,67716.0,67715.0,0.0644]
[1722125110878,0.35443,67714.0,67713.0,0.00413]
[1722125111086,0.86372405,67714.0,67713.0,0.00413]
[1722125111325,1.10001105,67714.0,67713.0,0.00413]
[1722125111557,0.86372405,67714.0,67713.0,0.00413]
[1722125111759,0.39115005,67714.0,67713.0,0.00413]
[1722125111870,0.27300705,67714.0,67713.0,0.00413]
[1722125112275,0.05099832,67733.0,67713.0,0.00413]
[1722125112499,0.45077872,67727.0,67713.0,0.00413]
[1722125112701,0.118136,67719.0,67713.0,0.00413]
[1722125112915,0.1227378,67718.0,67714.0,0.236287]
[1722125113114,0.38650557,67726.0,67714.0,0.236287]
[1722125113115,0.118128,67723.0,67716.0,0.118139]
[1722125113299,0.12273261,67722.0,67719.0,0.118135]
[1722125113493,0.15025957,67725.0,67715.0,0.236284]
[1722125113693,0.12273207,67724.0,67718.0,0.118136]
[1722125113893,0.27299164,67724.0,67718.0,0.118136]
[1722125114265,0.12273207,67723.0,67716.0,0.236279]
[1722125114467,0.236231,67731.0,67714.0,0.0644]
[1722125114468,0.236216,67735.0,67724.0,0.23625]
[1722125114639,0.236216,67735.0,67715.0,0.0815]
[1722125114640,0.118113,67732.0,67722.0,0.236258]
[1722125114786,0.27297708,67731.0,67715.0,0.0815]
[1722125114992,0.12271751,67730.0,67726.0,0.118122]
[1722125115202,0.15025957,67729.0,67721.0,0.23626]
[1722125115426,0.12271751,67728.0,67715.0,0.0815]
[1722125115831,0.12271751,67728.0,67723.0,0.118126]
[1722125116032,0.15025957,67729.0,67723.0,0.354381]
[1722125116298,0.12271609,67728.0,67723.0,0.236254]
[1722125116498,0.12271609,67728.0,67725.0,0.118124]
[1722125116718,0.12271609,67728.0,67724.0,0.118125]
[1722125116892,0.12271609,67728.0,67723.0,0.236254]
[1722125116893,0.12271609,67728.0,67727.0,0.118121]
[1722125117252,0.12271609,67728.0,67727.0,0.826847]
[1722125117456,0.05100025,67740.0,67732.0,0.236221]
[1722125117654,0.12270055,67739.0,67728.0,0.236239]
[1722125117858,0.12270055,67738.0,67737.0,0.118103]
[1722125118057,0.12270055,67738.0,67737.0,0.236207]
[1722125118337,0.15025957,67745.0,67736.0,0.0807]
[1722125118338,0.12268644,67742.0,67736.0,0.0807]
[1722125118538,0.12268644,67741.0,67740.0,0.826689]
[1722125118779,0.12268644,67741.0,67736.0,0.0807]
[1722125118780,0.05100025,67750.0,67741.0,0.236191]
[1722125118978,0.12267327,67749.0,67748.0,0.354253]
[1722125119181,0.17370121,67749.0,67748.0,0.118084]
[1722125119417,0.2729365,67749.0,67743.0,0.0664]
[1722125119741,0.55383614,67748.0,67733.0,0.0664]
[1722125119854,0.16912419,67734.0,67733.0,0.0664]
[1722125120061,0.66101925,67734.0,67733.0,0.0664]
[1722125120255,0.30669225,67734.0,67733.0,0.0664]
[1722125120682,0.30669225,67734.0,67725.0,0.51319141]
[1722125120683,0.236246,67726.0,67725.0,0.0807]
[1722125120856,0.12267693,67726.0,67725.0,0.0807]
[1722125121059,0.35892293,67726.0,67721.0,0.0664]
[1722125121336,0.118127,67724.0,67721.0,0.0664]
[1722125121514,0.30669225,67723.0,67721.0,0.0664]
[1722125121714,0.30669225,67722.0,67721.0,0.0664]
[1722125121916,0.30669225,67722.0,67721.0,0.184531]
[1722125122121,0.12267693,67722.0,67721.0,0.89332]
[1722125122293,0.12267693,67722.0,67721.0,0.79413566]
[1722125122294,0.12270775,67722.0,67721.0,0.79413566]
[1722125122495,0.12270775,67722.0,67721.0,1.03039866]
[1722125122698,0.00084,67748.0,67725.0,0.1553]
[1722125122918,0.00084,67748.0,67747.0,0.0664]
[1722125123119,0.12352137,67748.0,67747.0,0.184486]
[1722125123371,0.30754342,67748.0,67747.0,0.184486]
[1722125123496,0.30754342,67748.0,67747.0,0.420658]
[1722125123696,0.30754342,67748.0,67747.0,0.184486]
[1722125124185,0.30754342,67748.0,67747.0,0.420658]
[1722125124639,0.55775942,67748.0,67747.0,0.420658]
[1722125125044,0.55775942,67748.0,67747.0,0.184486]
[1722125125251,0.55774356,67748.0,67747.0,0.0664]
[1722125125451,0.55774356,67748.0,67747.0,0.420658]
[1722125125647,0.60177292,67748.0,67747.0,0.420658]
[1722125125854,0.55774356,67748.0,67747.0,0.420658]
[1722125126707,0.6051335,67748.0,67736.0,0.0664]
[1722125126898,0.3540775,67747.0,67746.0,0.118088]
[1722125127065,0.35492776,67747.0,67736.0,0.0664]
[1722125127264,0.251056,67748.0,67736.0,0.0664]
[1722125127265,0.30668756,67746.0,67745.0,0.118088]
[1722125127498,0.12267502,67746.0,67745.0,0.590446]
[1722125127935,0.14584299,67746.0,67745.0,0.354267]
[1722125128122,0.32985553,67746.0,67745.0,0.354267]
[1722125128324,0.32985108,67746.0,67745.0,0.118088]
[1722125128525,0.30668311,67746.0,67745.0,0.118088]
[1722125129219,0.30668311,67746.0,67745.0,0.354267]
[1722125129418,0.30668311,67746.0,67745.0,0.118088]
[1722125129624,0.30668311,67746.0,67745.0,0.354267]
[1722125129781,0.30668311,67746.0,67745.0,0.826625]
[1722125130185,0.30668311,67746.0,67745.0,0.973725]
[1722125130700,0.12267324,67746.0,67745.0,0.973725]
[1722125130906,0.12267324,67746.0,67745.0,1.12398457]
[1722125131036,0.12267324,67746.0,67745.0,0.973725]
[1722125131246,0.251056,67748.0,67747.0,0.59043]
[1722125131451,0.3737058,67748.0,67747.0,0.59043]
[1722125131652,0.3737058,67748.0,67747.0,0.826602]
[1722125131653,0.37841005,67748.0,67747.0,0.826602]
[1722125131860,0.373704,67748.0,67747.0,0.826602]
[1722125132853,0.373704,67748.0,67747.0,0.354258]
[1722125133135,0.37838655,67748.0,67747.0,0.354258]
[1722125133333,0.37838655,67748.0,67747.0,0.59043]
[1722125133460,0.37838655,67748.0,67747.0,0.826602]
[1722125134330,0.25573855,67748.0,67747.0,0.826602]
[1722125134539,0.37838967,67748.0,67747.0,0.826602]
[1722125134877,0.37839181,67748.0,67747.0,0.826602]
[1722125135520,0.37839181,67748.0,67747.0,0.828602]
[1722125135721,0.37370712,67748.0,67747.0,0.828602]
[1722125135996,0.39687085,67748.0,67747.0,0.828602]
[1722125136197,0.37370712,67748.0,67747.0,0.828602]
[1722125136415,0.251056,67748.0,67747.0,1.064774]
[1722125136647,0.37369678,67748.0,67747.0,1.21503357]
[1722125136845,0.251056,67748.0,67747.0,1.21503357]
[1722125137017,0.251056,67748.0,67747.0,1.70650557]
[1722125137156,0.251056,67748.0,67747.0,1.77190557]
[1722125137782,0.45077872,67779.0,67777.0,0.1416]
[1722125137991,0.45077872,67779.0,67778.0,0.354096]
[1722125138197,0.45077872,67779.0,67777.0,0.1416]
[1722125138198,0.00832,67782.0,67781.0,0.590135]
[1722125138400,0.00832,67782.0,67781.0,0.826189]
[1722125138863,0.00332,67782.0,67781.0,0.826189]
[1722125139421,0.02647264,67782.0,67781.0,1.062243]
[1722125140523,0.00332,67782.0,67781.0,1.062243]
[1722125140678,0.00332,67782.0,67781.0,0.826189]
[1722125140854,0.00332,67782.0,67781.0,0.590135]
[1722125141055,0.00332,67782.0,67779.0,0.23606]
[1722125141254,0.1226027,67781.0,67771.0,0.0654]
[1722125141479,0.1226027,67781.0,67780.0,0.118028]
[1722125141677,0.00332,67782.0,67771.0,0.0654]
[1722125141879,0.12260648,67781.0,67775.0,0.118037]
[1722125142080,0.12260648,67781.0,67779.0,0.118029]
[1722125142328,0.12260648,67781.0,67780.0,0.118028]
[1722125142466,0.12260648,67781.0,67780.0,0.354085]
[1722125142669,0.00332,67782.0,67781.0,0.354081]
[1722125142873,0.12592415,67782.0,67781.0,0.590135]
[1722125143109,0.00332,67782.0,67781.0,0.590135]
[1722125143528,0.00332,67782.0,67781.0,0.826189]
[1722125145313,0.00332,67782.0,67781.0,1.062243]
[1722125145517,0.00332,67782.0,67781.0,1.49473441]
[1722125145940,0.00332,67782.0,67781.0,1.63633441]
[1722125146145,0.00332,67782.0,67781.0,1.78659398]
[1722125146344,0.00332,67782.0,67781.0,1.88659398]
[1722125147863,0.02647146,67782.0,67781.0,1.88659398]
[1722125148211,0.00332,67782.0,67781.0,1.88659398]
[1722125148366,0.00332,67782.0,67781.0,2.04389398]
[1722125148579,0.00332,67782.0,67781.0,2.27994798]
[1722125148817,0.00664,67790.0,67789.0,1.062117]
[1722125149118,0.00664,67790.0,67789.0,2.11864423]
[1722125149336,0.00664,67790.0,67789.0,2.21864423]
[1722125149690,0.00664,67790.0,67789.0,1.98261823]
[1722125150857,0.00664,67790.0,67789.0,0.96898066]
[1722125151064,0.00664,67790.0,67789.0,0.72738066]
[1722125151411,0.00664,67790.0,67789.0,0.37334166]
[1722125151412,0.02979009,67790.0,67789.0,0.37334166]
[1722125151954,0.02979009,67790.0,67789.0,0.72738066]
[1722125152123,0.02979009,67790.0,67789.0,0.49135466]
[1722125152322,0.02979009,67790.0,67789.0,0.72738066]
[1722125152529,0.02979009,67790.0,67789.0,0.96340666]
[1722125152700,0.00664,67790.0,67789.0,0.96340666]
[1722125153324,0.00764,67790.0,67789.0,0.37434166]
[1722125153747,0.00664,67790.0,67789.0,0.49135466]
[1722125154092,0.00764,67790.0,67789.0,0.119013]
[1722125154286,0.00764,67790.0,67789.0,0.001]
[1722125154528,0.00664,67790.0,67789.0,0.118013]
[1722125154706,0.12922904,67790.0,67789.0,0.354039]
[1722125154919,0.12922904,67790.0,67789.0,0.590065]
[1722125155122,0.00664,67790.0,67789.0,0.354039]
[1722125155520,0.00664,67790.0,67789.0,0.590065]
[1722125155929,0.00664,67790.0,67789.0,0.354039]
[1722125156382,0.13022563,67790.0,67789.0,0.591065]
[1722125156660,0.13022563,67790.0,67789.0,0.355039]
[1722125156892,0.00764,67790.0,67789.0,0.591065]
[1722125157301,0.12522469,67790.0,67789.0,0.591065]
[1722125158817,0.12522563,67790.0,67789.0,0.591065]
[1722125159274,0.12522412,67790.0,67789.0,0.591065]
[1722125159979,0.12422412,67790.0,67789.0,1.11398036]
[1722125160199,0.00264,67790.0,67789.0,1.71240636]
[1722125160419,0.00264,67790.0,67789.0,1.63727657]
[1722125160681,0.00264,67790.0,67789.0,1.63927657]
[1722125160871,0.00164,67790.0,67789.0,1.63827657]
[1722125161117,0.00264,67790.0,67789.0,1.45897657]
[1722125161561,0.00264,67790.0,67789.0,1.46097657]
[1722125162254,0.00264,67790.0,67789.0,0.736665]
[1722125162467,0.00264,67790.0,67789.0,0.119013]
[1722125162878,0.1252164,67790.0,67789.0,0.119013]
[1722125163094,0.24774306,67790.0,67789.0,0.001]
[1722125163299,0.24774306,67790.0,67781.0,0.43249141]
[1722125163300,0.118025,67782.0,67781.0,0.43249141]
[1722125163510,0.1225764,67783.0,67781.0,0.43249141]
[1722125163717,0.1270696,67782.0,67781.0,0.43249141]
[1722125163931,0.118028,67780.0,67770.0,0.236091]
[1722125164245,0.42099746,67780.0,67774.0,0.118039]
[1722125164473,0.42099746,67780.0,67760.0,0.13425579]
[1722125164474,1.09906958,67780.0,67756.0,0.1456]
[1722125164644,1.09906958,67780.0,67759.0,0.236129]
[1722125164645,1.28389276,67780.0,67759.0,0.236129]
[1722125164863,1.28389276,67780.0,67756.0,0.381739]
[1722125165123,1.28516072,67780.0,67760.0,0.118062]
[1722125165313,1.28516072,67780.0,67755.0,0.236142]
[1722125165314,1.65266296,67780.0,67779.0,0.014924]
[1722125165766,1.41660596,67780.0,67779.0,0.014924]
[1722125165970,1.18054896,67780.0,67779.0,0.014924]
[1722125166191,0.51996172,67780.0,67779.0,0.014924]
[1722125166396,0.36970215,67780.0,67779.0,0.014924]
[1722125166601,0.36970215,67780.0,67779.0,0.000924]
[1722125166830,0.30870215,67780.0,67779.0,0.000924]
[1722125167051,0.33185773,67780.0,67779.0,0.012924]
[1722125167548,0.33219993,67780.0,67779.0,0.000924]
[1722125167795,0.33219993,67780.0,67779.0,0.008924]
[1722125168233,0.33134106,67780.0,67779.0,0.008924]
[1722125168466,0.15192651,67780.0,67779.0,0.363015]
[1722125168687,0.15192651,67780.0,67779.0,0.599076]
[1722125168938,0.14577563,67780.0,67779.0,0.599076]
[1722125169398,0.15249758,67780.0,67779.0,0.599076]
[1722125169631,0.15249758,67780.0,67779.0,0.982737]
[1722125169867,0.02989332,67780.0,67779.0,0.738676]
[1722125170087,0.02989332,67780.0,67779.0,0.746676]
[1722125170088,0.14574969,67780.0,67779.0,0.746676]
[1722125170527,0.14574969,67780.0,67779.0,0.736676]
[1722125170978,0.14574969,67780.0,67779.0,0.750676]
[1722125171198,0.14574969,67780.0,67779.0,0.986737]
[1722125171432,0.14574969,67780.0,67779.0,1.12499657]
[1722125171677,0.14574969,67780.0,67779.0,1.51635757]
[1722125171678,0.02315558,67780.0,67779.0,1.51635757]
[1722125172025,0.02315558,67780.0,67779.0,1.91765757]
[1722125173162,0.02315558,67780.0,67779.0,1.90365757]
[1722125173406,0.02315558,67780.0,67779.0,1.91765757]
[1722125173901,0.02315558,67780.0,67779.0,1.90365757]
[1722125174120,0.02315558,67780.0,67779.0,1.91765757]
[1722125174800,0.02315558,67780.0,67779.0,1.90365757]
[1722125175032,0.02315558,67780.0,67779.0,1.91765757]
[1722125175296,0.00832,67798.0,67789.0,0.590065]
[1722125175525,0.00832,67798.0,67789.0,1.78218364]
[1722125175778,0.00832,67798.0,67789.0,1.63192407]
[1722125176225,0.00832,67798.0,67789.0,1.39589807]
[1722125176433,0.12421954,67790.0,67789.0,0.43249141]
[1722125176635,0.12422413,67790.0,67789.0,0.42749141]
[1722125176762,0.13097251,67790.0,67789.0,0.42749141]
[1722125177168,0.13097251,67790.0,67789.0,0.54550441]
[1722125177368,0.13097251,67790.0,67789.0,0.78153041]
[1722125177769,0.12422413,67790.0,67789.0,0.78153041]
[1722125178089,0.12422413,67790.0,67789.0,0.79553041]
[1722125178289,0.13024503,67790.0,67789.0,0.79553041]
[1722125178667,0.00164,67790.0,67789.0,1.40489807]
[1722125179295,0.00164,67790.0,67789.0,1.39089807]
[1722125179296,0.12421731,67790.0,67789.0,1.39089807]
[1722125179532,0.00164,67790.0,67789.0,1.39089807]
[1722125179701,0.00164,67790.0,67789.0,1.40489807]
[1722125180113,0.00164,67790.0,67789.0,1.39089807]
[1722125180515,0.00164,67790.0,67789.0,1.03155641]
[1722125180945,0.00164,67790.0,67789.0,1.01755641]
[1722125181157,0.12421953,67790.0,67789.0,1.01755641]
[1722125181354,0.00164,67790.0,67789.0,1.03155641]
[1722125182549,0.02479002,67790.0,67789.0,1.01755641]
[1722125182932,0.02479002,67790.0,67789.0,1.03155641]
[1722125183329,0.00164,67790.0,67789.0,1.01755641]
[1722125183714,0.00164,67790.0,67789.0,1.03155641]
[1722125183919,0.00164,67790.0,67789.0,0.55950441]
[1722125184121,0.00164,67790.0,67789.0,0.54550441]
[1722125184462,0.00164,67790.0,67789.0,1.03155641]
[1722125184775,0.12422055,67790.0,67789.0,0.44149141]
[1722125185014,0.24223155,67790.0,67789.0,0.44149141]
[1722125185209,0.24826547,67790.0,67789.0,0.014]
[1722125185421,0.12568492,67790.0,67789.0,0.014]
[1722125185618,0.24828184,67790.0,67789.0,0.014]
[1722125185866,0.13027135,67790.0,67789.0,0.014]
[1722125186076,0.15342273,67790.0,67789.0,0.014]
[1722125186280,0.15342273,67790.0,67789.0,0.132013]
[1722125186449,0.15342273,67790.0,67789.0,0.118013]
[1722125186664,0.15342273,67790.0,67789.0,0.368039]
[1722125186793,0.14738881,67790.0,67789.0,0.132013]
[1722125187226,0.15338162,67790.0,67789.0,0.014]
[1722125187450,0.13023024,67790.0,67789.0,0.014]
[1722125187661,0.48426424,67790.0,67789.0,0.014]
[1722125188616,0.48426836,67790.0,67789.0,0.014]
[1722125188820,0.48426836,67790.0,67789.0,0.014924]
[1722125189584,0.13023436,67790.0,67789.0,0.014924]
[1722125189788,0.48426836,67790.0,67789.0,0.014924]
[1722125190004,0.24824536,67790.0,67789.0,0.014924]
[1722125190206,0.13023436,67790.0,67789.0,0.014924]
[1722125190403,0.13023436,67790.0,67789.0,0.368963]
[1722125190404,0.1302325,67790.0,67789.0,0.368963]
[1722125190604,0.1302325,67790.0,67789.0,0.132937]
[1722125190989,0.12423969,67790.0,67789.0,0.132937]
[1722125191195,0.13024821,67790.0,67789.0,0.132937]
[1722125191409,0.13024821,67790.0,67789.0,0.368963]
[1722125191612,0.00764852,67790.0,67789.0,0.368963]
[1722125191822,0.00764852,67790.0,67789.0,0.132937]
[1722125192072,0.13024773,67790.0,67789.0,0.132937]
[1722125193489,0.13024773,67790.0,67789.0,0.014924]
[1722125194567,0.13024773,67790.0,67789.0,0.014964]
[1722125194885,0.15339942,67790.0,67789.0,0.014964]
[1722125195080,0.0307999,67790.0,67789.0,0.014964]
[1722125195306,0.62995409,67790.0,67789.0,0.014964]
[1722125195531,1.49679008,67790.0,67789.0,0.014964]
[1722125196221,1.43141025,67790.0,67789.0,0.014964]
[1722125196444,1.51333303,67790.0,67789.0,0.000964]
[1722125196669,2.07255214,67790.0,67789.0,0.008964]
[1722125196904,0.735442,67780.0,67767.0,0.46892108]
[1722125197105,1.74186051,67780.0,67767.0,0.46892108]
[1722125197328,1.74716178,67780.0,67767.0,0.46892108]
[1722125197743,1.74685667,67780.0,67767.0,0.46892108]
[1722125197940,1.51079967,67780.0,67767.0,0.46892108]
[1722125198585,1.53395816,67780.0,67767.0,0.46892108]
[1722125198825,0.82578716,67780.0,67768.0,0.236098]
[1722125199116,0.37382089,67780.0,67774.0,0.236077]
[1722125199255,0.37382089,67780.0,67777.0,0.118033]
[1722125199256,0.15211126,67780.0,67777.0,0.118033]
[1722125199454,0.15211126,67780.0,67774.0,0.236077]
[1722125199715,0.15111126,67780.0,67776.0,0.118034]
[1722125199934,0.15111126,67780.0,67779.0,0.118954]
[1722125200329,0.15111126,67780.0,67779.0,0.121954]
[1722125200532,0.14580999,67780.0,67779.0,0.358015]
[1722125200764,0.15088535,67780.0,67779.0,0.358015]
[1722125201653,0.15088535,67780.0,67779.0,0.591076]
[1722125201803,0.15188535,67780.0,67779.0,0.599076]
[1722125201998,0.1467731,67780.0,67779.0,0.599076]
[1722125202507,0.1467731,67780.0,67779.0,0.363015]
[1722125202708,0.15131313,67780.0,67779.0,0.363015]
[1722125203069,1.1550437,67780.0,67779.0,0.008924]
[1722125203269,0.0626,67778.0,67749.0,0.46892108]
[1722125203653,0.09460381,67769.0,67753.0,0.236149]
[1722125203809,0.31645942,67768.0,67745.0,0.42749141]
[1722125204009,0.236115,67764.0,67755.0,0.118071]
[1722125204225,0.12265345,67763.0,67754.0,0.118073]
[1722125204403,0.236115,67764.0,67747.0,0.236171]
[1722125204404,0.23614,67757.0,67747.0,0.236171]
[1722125204603,0.23614,67757.0,67745.0,0.42749141]
[1722125204604,0.12265492,67756.0,67750.0,0.236161]
[1722125204803,0.12265492,67755.0,67745.0,0.42749141]
[1722125205208,0.00481289,67754.0,67752.0,0.118077]
[1722125205407,0.02316183,67753.0,67752.0,0.354232]
[1722125206300,0.02316183,67753.0,67752.0,0.123077]
[1722125206495,0.02316183,67753.0,67752.0,0.359232]
[1722125206743,0.02316183,67753.0,67752.0,0.595387]
[1722125206917,0.02316183,67753.0,67752.0,0.826542]
[1722125207262,0.02416183,67753.0,67752.0,1.27950157]
[1722125207487,0.02416183,67753.0,67752.0,1.22220157]
[1722125207780,0.02416183,67753.0,67752.0,1.071942]
[1722125208019,0.02416183,67753.0,67752.0,0.499632]
[1722125208187,0.02416183,67753.0,67752.0,0.123077]
[1722125208328,0.02416183,67753.0,67750.0,0.37334166]
[1722125208329,0.02316183,67753.0,67750.0,0.37334166]
[1722125208530,0.02316183,67753.0,67728.0,0.46892108]
[1722125208531,0.02316183,67753.0,67737.0,0.236206]
[1722125208757,0.236173,67747.0,67735.0,0.236214]
[1722125209114,0.24501586,67746.0,67734.0,0.0803]
[1722125209310,0.12266393,67745.0,67734.0,0.0803]
[1722125209450,0.12266393,67745.0,67731.0,0.42749141]
[1722125209451,0.27710196,67745.0,67731.0,0.42749141]
[1722125209646,0.236187,67743.0,67731.0,0.42749141]
[1722125209879,0.15444753,67742.0,67731.0,0.42749141]
[1722125210091,0.118111,67733.0,67731.0,0.42749141]
[1722125210290,0.118112,67732.0,67731.0,0.42749141]
[1722125210512,0.11811,67733.0,67731.0,0.42749141]
[1722125210716,0.24493794,67732.0,67731.0,0.42749141]
[1722125210913,0.12682594,67732.0,67731.0,0.42749141]
[1722125211325,0.12682594,67732.0,67724.0,0.236251]
[1722125211326,0.12682594,67732.0,67727.0,0.118121]
[1722125211518,0.12270785,67731.0,67727.0,0.118121]
[1722125211715,0.12270785,67731.0,67725.0,0.118123]
[1722125211716,0.00412257,67731.0,67725.0,0.118123]
[1722125211891,0.00412257,67731.0,67725.0,0.354371]
[1722125212093,0.236216,67735.0,67725.0,0.236248]
[1722125212327,0.00412514,67730.0,67728.0,0.118119]
[1722125212478,0.118109,67734.0,67728.0,0.118119]
[1722125212680,0.00412771,67729.0,67728.0,0.118119]
[1722125212894,0.001,67731.0,67728.0,0.118119]
[1722125213089,0.001,67731.0,67727.0,0.014]
[1722125213311,0.00413028,67730.0,67727.0,0.11812]
[1722125213531,0.118109,67734.0,67727.0,0.11812]
[1722125213743,0.00412,67729.0,67728.0,0.014]
[1722125213945,0.001,67734.0,67728.0,0.014]
[1722125213946,0.119109,67734.0,67728.0,0.014]
[1722125214278,0.0041238,67729.0,67728.0,0.014]
[1722125214429,0.001,67734.0,67730.0,0.118114]
[1722125214769,0.12270544,67733.0,67730.0,0.118114]
[1722125214977,0.001,67734.0,67730.0,0.118114]
[1722125215145,0.12270673,67733.0,67721.0,0.009141]
[1722125215354,0.236232,67730.0,67722.0,0.118129]
[1722125215565,0.11812,67728.0,67727.0,0.014]
[1722125215761,0.237232,67730.0,67727.0,0.014]
[1722125216111,0.118118,67729.0,67723.0,0.118127]
[1722125216315,0.11812,67728.0,67721.0,0.023141]
[1722125216518,0.02317077,67730.0,67722.0,0.236259]
[1722125216714,0.02317077,67730.0,67723.0,0.236254]
[1722125216922,0.02317077,67730.0,67721.0,0.023141]
[1722125217128,0.118112,67732.0,67727.0,0.11812]
[1722125217338,0.237223,67733.0,67721.0,0.023141]
[1722125217562,0.118114,67731.0,67724.0,0.236252]
[1722125217770,0.12271307,67730.0,67722.0,0.236256]
[1722125217926,0.15025957,67730.0,67721.0,0.009141]
[1722125218136,0.11813,67722.0,67721.0,0.009141]
[1722125218318,0.236253,67724.0,67721.0,0.009141]
[1722125218521,0.11813,67722.0,67721.0,0.009141]
[1722125218746,0.236248,67726.0,67721.0,0.009141]
[1722125218919,0.118128,67723.0,67721.0,0.009141]
[1722125219524,0.236251,67725.0,67721.0,0.009141]
[1722125219719,0.001,67722.0,67721.0,0.023141]
[1722125219945,0.35539,67722.0,67721.0,0.023141]
[1722125220146,0.35439,67722.0,67721.0,0.009141]
[1722125220442,0.24085473,67722.0,67721.0,0.023141]
[1722125220854,0.35439,67722.0,67721.0,0.023141]
[1722125221037,0.71337477,67722.0,67721.0,0.023141]
[1722125221444,1.09989856,67722.0,67721.0,0.023141]
[1722125221670,1.48125856,67722.0,67721.0,0.023141]
[1722125222112,0.590717,67714.0,67713.0,0.00413]
[1722125222328,1.09999256,67714.0,67713.0,0.00413]
[1722125223466,0.62741856,67714.0,67713.0,0.00413]
[1722125223686,0.19615353,67721.0,67713.0,0.00413]
[1722125223687,0.118134,67720.0,67713.0,0.00413]
[1722125223886,0.118138,67717.0,67713.0,0.00413]
[1722125224011,0.27299844,67719.0,67713.0,0.00413]
[1722125224012,0.15025957,67719.0,67713.0,0.00413]
[1722125224218,0.118143,67714.0,67713.0,0.00413]
[1722125224431,0.62742506,67714.0,67713.0,0.00413]
[1722125224673,0.86371206,67714.0,67713.0,0.00413]
[1722125225118,0.53576786,67714.0,67713.0,0.00413]
[1722125225340,0.12273549,67714.0,67713.0,0.00513]
[1722125225907,0.12273549,67715.0,67714.0,0.118143]
[1722125226129,0.118133,67720.0,67714.0,0.118143]
[1722125226340,0.236258,67723.0,67715.0,0.118142]
[1722125226341,0.12274144,67719.0,67715.0,0.118142]
[1722125226668,0.12274144,67718.0,67714.0,0.118143]
[1722125226805,0.12274144,67717.0,67714.0,0.118143]
[1722125227005,0.12274144,67716.0,67715.0,0.118141]
[1722125227216,0.05104852,67727.0,67722.0,0.118129]
[1722125227548,0.05104852,67727.0,67718.0,0.236272]
[1722125227549,0.27298408,67726.0,67718.0,0.236272]
[1722125227759,0.12272451,67725.0,67724.0,0.118125]
[1722125227968,0.02317522,67726.0,67725.0,0.354373]
[1722125228168,0.02317522,67726.0,67725.0,0.590622]
[1722125228380,0.02317522,67726.0,67725.0,0.354373]
[1722125228570,0.02317522,67726.0,67724.0,0.1478]
[1722125228792,0.02317522,67726.0,67717.0,0.60961566]
[1722125228793,0.001,67720.0,67719.0,0.118135]
[1722125228959,0.001,67720.0,67719.0,0.354405]
[1722125229156,0.02317522,67726.0,67719.0,0.23627]
[1722125229355,0.02317522,67726.0,67721.0,0.118131]
[1722125229728,0.02317522,67726.0,67719.0,0.23627]
[1722125229729,0.02417522,67726.0,67725.0,0.005]
[1722125229934,0.14229822,67726.0,67725.0,0.005]
[1722125230142,0.29615085,67726.0,67716.0,0.42749141]
[1722125230317,0.23626,67722.0,67712.0,0.118146]